fUST/lending_fUST_20240613
["ID","MTS","AMOUNT","RATE_DAILY","PERIOD"]
[329302276,1718226658740,-500.0,0.00018356,2]
[329302277,1718226658757,-828.38,0.00018356,2]
[329302278,1718226658768,-545.52,0.00018356,2]
[329302279,1718226658787,-151.0,0.00018356,2]
[329302280,1718226658801,-500.0,0.00018356,2]
[329302281,1718226658814,-515.42,0.00018356,2]
[329302282,1718226658824,-500.0,0.00018356,2]
[329302283,1718226658836,-723.5,0.00018356,2]
[329302284,1718226658854,-1052.01,0.00018356,2]
[329302285,1718226658869,-151.0,0.0001843,2]
[329302286,1718226658880,-151.0,0.0001843,2]
[329302287,1718226658893,-151.0,0.0001843,2]
[329302288,1718226658904,-151.0,0.0001843,2]
[329302289,1718226658915,-151.0,0.0001843,2]
[329302290,1718226658940,-151.0,0.0001843,2]
[329302291,1718226658973,-157.939075,0.0001843,2]
[329302292,1718226659011,-151.0,0.0001843,2]
[329302293,1718226659024,-151.0,0.0001843,2]
[329302294,1718226659040,-151.0,0.0001843,2]
[329302295,1718226659051,-151.0,0.0001843,2]
[329302296,1718226659101,-151.0,0.0001843,2]
[329302297,1718226659113,-151.0,0.0001843,2]
[329302298,1718226659164,-151.0,0.0001843,2]
[329302299,1718226659188,-151.0,0.0001843,2]
[329302300,1718226659202,-167.338952,0.0001843,2]
[329302301,1718226659242,-167.338952,0.0001843,2]
[329302302,1718226659284,-185.85022718,0.0001843,2]
[329302303,1718226659300,-151.0,0.0001843,2]
[329302304,1718226659312,-151.0,0.0001843,2]
[329302305,1718226659333,-151.0,0.0001843,2]
[329302306,1718226659346,-203.321606,0.0001843,2]
[329302307,1718226659359,-203.321606,0.0001843,2]
[329302308,1718226659372,-155.0,0.0001844,2]
[329302309,1718226659408,-151.0,0.00018501,2]
[329302310,1718226659429,-5096.13128834,0.0001853,13]
[329302311,1718226659454,-151.0,0.0001853,2]
[329302312,1718226659483,-151.0,0.0001853,2]
[329302313,1718226659495,-151.0,0.0001853,2]
[329302314,1718226659529,-151.0,0.0001853,2]
[329302315,1718226659561,-151.0,0.0001853,2]
[329302316,1718226659592,-151.0,0.0001853,2]
[329302317,1718226659608,-151.0,0.0001853,2]
[329302318,1718226659628,-217.539594,0.0001853,2]
[329302319,1718226659643,-151.0,0.0001853,2]
[329302320,1718226659670,-151.0,0.0001853,2]
[329302321,1718226659724,-151.0,0.0001853,2]
[329302322,1718226659763,-260.394515,0.0001853,2]
[329302323,1718226659778,-167.338952,0.0001853,2]
[329302324,1718226659790,-167.338952,0.0001853,2]
[329302325,1718226659802,-151.0,0.0001853,2]
[329302326,1718226659820,-151.0,0.0001853,2]
[329302327,1718226659835,-151.0,0.0001853,2]
[329302328,1718226659858,-203.321606,0.0001853,2]
[329302329,1718226659874,-151.0,0.0001853,2]
[329302330,1718226659888,-203.321606,0.0001853,2]
[329302331,1718226659912,-155.913692,0.0001853,2]
[329302332,1718226659925,-151.0,0.0001853,2]
[329302333,1718226659947,-335.223716,0.0001853,2]
[329302334,1718226659967,-335.223716,0.0001853,2]
[329302335,1718226659987,-332.568126,0.0001853,2]
[329302336,1718226660002,-332.568126,0.0001853,2]
[329302337,1718226660028,-289384.0,0.0001853,2]
[329302338,1718226660062,-166.666666,0.00018575,2]
[329302339,1718226660089,-660.42,0.0001863,2]
[329302340,1718226660104,-664.27,0.0001863,2]
[329302341,1718226660123,-670.33,0.0001863,2]
[329302342,1718226660163,-500.0,0.0001863,2]
[329302343,1718226660176,-616.02,0.0001863,2]
[329302344,1718226660195,-513.83,0.0001863,2]
[329302345,1718226660205,-616.19,0.0001863,2]
[329302346,1718226660218,-500.0,0.0001863,2]
[329302347,1718226660232,-500.0,0.0001863,2]
[329302348,1718226660247,-325.875628,0.0001863,2]
[329302349,1718226660263,-500.0,0.0001863,2]
[329302350,1718226660292,-608.18,0.0001863,2]
[329302351,1718226660303,-541.13,0.0001863,2]
[329302352,1718226660315,-589.73,0.0001863,2]
[329302353,1718226660326,-500.0,0.0001863,2]
[329302354,1718226660337,-898.75,0.0001863,2]
[329302355,1718226660354,-500.0,0.0001863,2]
[329302356,1718226660365,-1695.74,0.0001863,2]
[329302357,1718226660395,-1385.85,0.0001863,2]
[329302358,1718226660407,-542.96,0.0001863,2]
[329302359,1718226660430,-698.72,0.0001863,2]
[329302360,1718226660441,-1233.79,0.0001863,2]
[329302361,1718226660461,-522.57,0.0001863,2]
[329302362,1718226660480,-921.12,0.0001863,2]
[329302363,1718226660494,-3936.87,0.0001863,2]
[329302364,1718226660521,-500.0,0.0001863,2]
[329302365,1718226660536,-672.79,0.0001863,2]
[329302366,1718226660547,-920.41,0.0001863,2]
[329302367,1718226660561,-609.02,0.0001863,2]
[329302368,1718226660573,-500.0,0.0001863,2]
[329302369,1718226660584,-519.12,0.0001863,2]
[329302370,1718226660598,-4004.66,0.0001863,2]
[329302371,1718226660624,-9515.81,0.0001863,2]
[329302372,1718226660645,-3739.05,0.0001863,2]
[329302373,1718226660668,-1800.83,0.0001863,2]
[329302374,1718226660683,-698.14,0.0001863,2]
[329302375,1718226660694,-500.0,0.0001863,2]
[329302376,1718226660705,-1861.24,0.0001863,2]
[329302377,1718226660716,-500.0,0.0001863,2]
[329302378,1718226660727,-626.6,0.0001863,2]
[329302379,1718226660762,-500.0,0.0001863,2]
[329302380,1718226660786,-5014.22,0.0001863,2]
[329302381,1718226660799,-500.0,0.0001863,2]
[329302382,1718226660854,-500.0,0.0001863,2]
[329302383,1718226660888,-714.84,0.0001863,2]
[329302384,1718226660900,-500.0,0.0001863,2]
[329302385,1718226660939,-828.38,0.0001863,2]
[329302386,1718226660951,-545.52,0.0001863,2]
[329302387,1718226660963,-500.0,0.0001863,2]
[329302388,1718226660987,-500.0,0.0001863,2]
[329302389,1718226661024,-723.5,0.0001863,2]
[329302390,1718226661035,-1052.01,0.0001863,2]
[329302391,1718226661046,-250.0,0.0001863,2]
[329302392,1718226661056,-1000.0,0.000187,2]
[329302393,1718226661067,-1750.0,0.00018707,2]
[329302394,1718226661089,-151.0,0.00018715,2]
[329302395,1718226661114,-432.803992,0.0001874,2]
[329302396,1718226661125,-306.0,0.0001874,2]
[329302397,1718226661155,-646.79548283,0.00018872,2]
[329302398,1718226661186,-1802.22342746,0.000189,2]
[329302399,1718226661200,-660.42,0.00018904,2]
[329302400,1718226661214,-664.27,0.00018904,2]
[329302401,1718226661226,-670.33,0.00018904,2]
[329302402,1718226661242,-490.49325436,0.00018904,2]
[329302403,1718226661271,-616.02,0.00018904,2]
[329302404,1718226661299,-513.83,0.00018904,2]
[329302405,1718226661338,-616.19,0.00018904,2]
[329302406,1718226661354,-500.0,0.00018904,2]
[329302407,1718226661381,-500.0,0.00018904,2]
[329302408,1718226661404,-289.16,0.00018904,2]
[329302409,1718226661415,-608.18,0.00018904,2]
[329302410,1718226661437,-541.13,0.00018904,2]
[329302411,1718226661449,-589.73,0.00018904,2]
[329302412,1718226661461,-500.0,0.00018904,2]
[329302413,1718226661583,-898.75,0.00018904,2]
[329302414,1718226661601,-500.0,0.00018904,2]
[329302415,1718226661630,-1695.74,0.00018904,2]
[329302416,1718226661657,-1385.85,0.00018904,2]
[329302417,1718226661671,-542.96,0.00018904,2]
[329302418,1718226661683,-698.72,0.00018904,2]
[329302419,1718226661694,-1233.79,0.00018904,2]
[329302420,1718226661706,-522.57,0.00018904,2]
[329302421,1718226661720,-921.12,0.00018904,2]
[329302422,1718226661733,-3936.87,0.00018904,2]
[329302423,1718226661746,-500.0,0.00018904,2]
[329302424,1718226661780,-672.79,0.00018904,2]
[329302425,1718226661795,-920.41,0.00018904,2]
[329302426,1718226661811,-500.0,0.00018904,2]
[329302427,1718226661832,-4004.66,0.00018904,2]
[329302428,1718226661867,-9515.81,0.00018904,2]
[329302429,1718226661884,-3739.05,0.00018904,2]
[329302430,1718226661898,-1800.83,0.00018904,2]
[329302431,1718226661920,-698.14,0.00018904,2]
[329302432,1718226661942,-408.7,0.00018904,2]
[329302433,1718226661963,-1861.24,0.00018904,2]
[329302434,1718226661975,-500.0,0.00018904,2]
[329302435,1718226661993,-626.6,0.00018904,2]
[329302436,1718226662014,-500.0,0.00018904,2]
[329302437,1718226662030,-5014.22,0.00018904,2]
[329302438,1718226662047,-500.0,0.00018904,2]
[329302439,1718226662063,-500.0,0.00018904,2]
[329302440,1718226662086,-714.84,0.00018904,2]
[329302441,1718226662103,-231.66,0.00018904,2]
[329302442,1718226662121,-828.38,0.00018904,2]
[329302443,1718226662165,-545.52,0.00018904,2]
[329302444,1718226662178,-307.41217758,0.00018904,2]
[329302445,1718226662194,-500.0,0.00018904,2]
[329302446,1718226662217,-723.5,0.00018904,2]
[329302447,1718226662233,-1052.01,0.00018904,2]
[329302448,1718226662247,-151.0,0.00018929,2]
[329302449,1718226662258,-7270.73643792,0.00019,2]
[329302450,1718226662271,-163.76789773,0.00019,2]
[329302451,1718226662284,-600.0,0.00019092,2]
[329302452,1718226662299,-150.0,0.00019123,2]
[329302453,1718226662310,-235.629,0.00019123,2]
[329302454,1718226662323,-153.582,0.00019123,2]
[329302455,1718226662338,-499.0,0.00019123,2]
[329302456,1718226662350,-150.0,0.00019123,2]
[329302457,1718226662367,-151.0,0.00019144,2]
[329302458,1718226662381,-151.0,0.00019144,2]
[329302459,1718226662392,-151.0,0.00019144,2]
[329302460,1718226662406,-151.0,0.00019144,2]
[329302461,1718226662419,-2113.46925397,0.00019176,2]
[329302462,1718226662431,-151.0,0.00019176,2]
[329302463,1718226662444,-332.568126,0.00019176,2]
[329302464,1718226662482,-332.568126,0.00019176,2]
[329302465,1718226662514,-151.0,0.00019177,2]
[329302466,1718226662527,-151.0,0.00019177,2]
[329302467,1718226662538,-151.0,0.00019177,2]
[329302468,1718226662548,-156.284908,0.00019177,2]
[329302469,1718226662565,-151.0,0.00019177,2]
[329302470,1718226662592,-480.59517794,0.00019178,2]
[329302471,1718226662613,-500.0,0.00019178,2]
[329302472,1718226662632,-500.0,0.00019178,2]
[329302473,1718226662657,-161.66451355,0.00019178,2]
[329302474,1718226662672,-500.0,0.00019178,2]
[329302475,1718226662706,-411.77159566,0.00019178,2]
[329302476,1718226662743,-500.0,0.00019178,2]
[329302477,1718226662755,-500.0,0.00019178,2]
[329302478,1718226662770,-248.20352956,0.00019178,2]
[329302479,1718226662787,-500.0,0.00019178,2]
[329302480,1718226662798,-500.0,0.00019178,2]
[329302481,1718226662811,-500.0,0.00019178,2]
[329302482,1718226662824,-500.0,0.00019178,2]
[329302483,1718226662835,-189.56099719,0.00019178,2]
[329302484,1718226662848,-500.0,0.00019178,2]
[329302485,1718226662875,-500.0,0.00019178,2]
[329302486,1718226662893,-450.0,0.00019178,2]
[329302487,1718226662909,-500.0,0.00019178,2]
[329302488,1718226662933,-500.0,0.00019178,2]
[329302489,1718226662959,-500.0,0.00019178,2]
[329302490,1718226663003,-565.13761291,0.00019178,2]
[329302491,1718226663021,-500.0,0.00019178,2]
[329302492,1718226663049,-500.0,0.00019178,2]
[329302493,1718226663062,-427.7471782,0.00019178,2]
[329302494,1718226663074,-500.0,0.00019178,2]
[329302495,1718226663086,-499.34469124,0.00019178,2]
[329302496,1718226663098,-500.0,0.00019178,2]
[329302497,1718226663119,-500.0,0.00019178,2]
[329302498,1718226663155,-500.0,0.00019178,2]
[329302499,1718226663173,-500.0,0.00019178,2]
[329302500,1718226663185,-500.0,0.00019178,2]
[329302501,1718226663200,-500.0,0.00019178,2]
[329302502,1718226663213,-500.0,0.00019178,2]
[329302503,1718226663231,-500.0,0.00019178,2]
[329302504,1718226663247,-500.0,0.00019178,2]
[329302505,1718226663275,-500.0,0.00019178,2]
[329302506,1718226663287,-500.0,0.00019178,2]
[329302507,1718226663302,-500.0,0.00019178,2]
[329302508,1718226663330,-500.0,0.00019178,2]
[329302509,1718226663345,-500.0,0.00019178,2]
[329302510,1718226663360,-500.0,0.00019178,2]
[329302511,1718226663374,-352.42071028,0.00019178,2]
[329302512,1718226663393,-500.0,0.00019178,2]
[329302513,1718226663405,-500.0,0.00019178,2]
[329302514,1718226663416,-500.0,0.00019178,2]
[329302515,1718226663435,-500.0,0.00019178,2]
[329302516,1718226663458,-500.0,0.00019178,2]
[329302517,1718226663473,-500.0,0.00019178,2]
[329302518,1718226663487,-500.0,0.00019178,2]
[329302519,1718226663504,-500.0,0.00019178,2]
[329302520,1718226663518,-500.0,0.00019178,2]
[329302521,1718226663532,-500.0,0.00019178,2]
[329302522,1718226663546,-500.0,0.00019178,2]
[329302523,1718226663560,-500.0,0.00019178,2]
[329302524,1718226663571,-500.0,0.00019178,2]
[329302525,1718226663585,-500.0,0.00019178,2]
[329302526,1718226663600,-500.0,0.00019178,2]
[329302527,1718226663613,-500.0,0.00019178,2]
[329302528,1718226663636,-500.0,0.00019178,2]
[329302529,1718226663658,-500.0,0.00019178,2]
[329302530,1718226663677,-500.0,0.00019178,2]
[329302531,1718226663691,-500.0,0.00019178,2]
[329302532,1718226663715,-500.0,0.00019178,2]
[329302533,1718226663730,-500.0,0.00019178,2]
[329302534,1718226663746,-500.0,0.00019178,2]
[329302535,1718226663760,-500.0,0.00019178,2]
[329302536,1718226663775,-549.99999999,0.00019178,2]
[329302537,1718226663792,-500.0,0.00019178,2]
[329302538,1718226663803,-500.0,0.00019178,2]
[329302539,1718226663823,-500.0,0.00019178,2]
[329302540,1718226663848,-500.0,0.00019178,2]
[329302541,1718226663863,-500.0,0.00019178,2]
[329302542,1718226663884,-500.0,0.00019178,2]
[329302543,1718226663899,-500.0,0.00019178,2]
[329302544,1718226663919,-500.0,0.00019178,2]
[329302545,1718226663937,-500.0,0.00019178,2]
[329302546,1718226663950,-650.0,0.00019178,2]
[329302547,1718226663970,-500.0,0.00019178,2]
[329302548,1718226663983,-500.0,0.00019178,2]
[329302549,1718226663995,-500.0,0.00019178,2]
[329302550,1718226664009,-660.42,0.00019178,2]
[329302551,1718226664022,-664.27,0.00019178,2]
[329302552,1718226664034,-670.33,0.00019178,2]
[329302553,1718226664048,-616.02,0.00019178,2]
[329302554,1718226664062,-513.83,0.00019178,2]
[329302555,1718226664077,-616.19,0.00019178,2]
[329302556,1718226664090,-500.0,0.00019178,2]
[329302557,1718226664108,-191.77,0.00019178,2]
[329302558,1718226664146,-608.18,0.00019178,2]
[329302559,1718226664171,-541.13,0.00019178,2]
[329302560,1718226664208,-589.73,0.00019178,2]
[329302561,1718226664224,-500.0,0.00019178,2]
[329302562,1718226664243,-898.75,0.00019178,2]
[329302563,1718226664255,-151.0,0.00019178,2]
[329302564,1718226664270,-151.0,0.00019178,2]
[329302565,1718226664280,-151.0,0.00019178,2]
[329302566,1718226664290,-167.338952,0.00019178,2]
[329302567,1718226664302,-167.338952,0.00019178,2]
[329302568,1718226664315,-500.0,0.00019178,2]
[329302569,1718226664337,-1695.74,0.00019178,2]
[329302570,1718226664348,-1385.85,0.00019178,2]
[329302571,1718226664362,-542.96,0.00019178,2]
[329302572,1718226664373,-698.72,0.00019178,2]
[329302573,1718226664399,-1233.79,0.00019178,2]
[329302574,1718226664416,-522.57,0.00019178,2]
[329302575,1718226664429,-151.0,0.00019178,2]
[329302576,1718226664439,-921.12,0.00019178,2]
[329302577,1718226664454,-151.0,0.00019178,2]
[329302578,1718226664478,-3936.87,0.00019178,2]
[329302579,1718226664495,-500.0,0.00019178,2]
[329302580,1718226664506,-672.79,0.00019178,2]
[329302581,1718226664528,-203.321606,0.00019178,2]
[329302582,1718226664556,-920.41,0.00019178,2]
[329302583,1718226664584,-151.0,0.00019178,2]
[329302584,1718226664599,-203.321606,0.00019178,2]
[329302585,1718226664617,-500.0,0.00019178,2]
[329302586,1718226664651,-4004.66,0.00019178,2]
[329302587,1718226664666,-9515.81,0.00019178,2]
[329302588,1718226664683,-3739.05,0.00019178,2]
[329302589,1718226664701,-151.0,0.00019178,2]
[329302590,1718226664727,-1800.83,0.00019178,2]
[329302591,1718226664748,-698.14,0.00019178,2]
[329302592,1718226664765,-335.223716,0.00019178,2]
[329302593,1718226664811,-1861.24,0.00019178,2]
[329302594,1718226664837,-335.223716,0.00019178,2]
[329302595,1718226664857,-318.83320295,0.00019178,2]
[329302596,1718226664870,-626.6,0.00019178,2]
[329302597,1718226664882,-220.82069625,0.00019178,2]
[329302598,1718226664911,-5014.22,0.00019178,2]
[329302599,1718226664930,-500.0,0.00019178,2]
[329302600,1718226664946,-500.0,0.00019178,2]
[329302601,1718226664971,-714.84,0.00019178,2]
[329302602,1718226664987,-828.38,0.00019178,2]
[329302603,1718226665002,-545.52,0.00019178,2]
[329302604,1718226665036,-500.0,0.00019178,2]
[329302605,1718226665052,-723.5,0.00019178,2]
[329302606,1718226665064,-1052.01,0.00019178,2]
[329302607,1718226665083,-176.783717,0.00019178,2]
[329302608,1718226665106,-165.151759,0.00019178,2]
[329302609,1718226665135,-1000.0,0.000192,2]
[329302610,1718226665173,-153.0,0.00019288,2]
[329302611,1718226665189,-153.0,0.00019288,2]
[329302612,1718226665201,-153.0,0.00019288,2]
[329302613,1718226665213,-1110.78,0.00019291,2]
[329302614,1718226665225,-151.0,0.00019358,2]
[329302615,1718226665242,-151.0,0.00019358,2]
[329302616,1718226665257,-660.42,0.00019452,2]
[329302617,1718226665271,-151.0,0.00019452,2]
[329302618,1718226665307,-664.27,0.00019452,2]
[329302619,1718226665339,-670.33,0.00019452,2]
[329302620,1718226665361,-616.02,0.00019452,2]
[329302621,1718226665377,-513.83,0.00019452,2]
[329302622,1718226665393,-616.19,0.00019452,2]
[329302623,1718226665408,-500.0,0.00019452,2]
[329302624,1718226665426,-151.0,0.00019452,2]
[329302625,1718226665441,-151.0,0.00019452,2]
[329302626,1718226665461,-608.18,0.00019452,2]
[329302627,1718226665473,-541.13,0.00019452,2]
[329302628,1718226665497,-589.73,0.00019452,2]
[329302629,1718226665508,-151.0,0.00019452,2]
[329302630,1718226665531,-500.0,0.00019452,2]
[329302631,1718226665545,-898.75,0.00019452,2]
[329302632,1718226665557,-151.0,0.00019452,2]
[329302633,1718226665588,-151.0,0.00019452,2]
[329302634,1718226665612,-151.0,0.00019452,2]
[329302635,1718226665624,-167.338952,0.00019452,2]
[329302636,1718226665636,-167.338952,0.00019452,2]
[329302637,1718226665648,-500.0,0.00019452,2]
[329302638,1718226665662,-1695.74,0.00019452,2]
[329302639,1718226665674,-1385.85,0.00019452,2]
[329302640,1718226665685,-542.96,0.00019452,2]
[329302641,1718226665699,-698.72,0.00019452,2]
[329302642,1718226665714,-151.0,0.00019452,2]
[329302643,1718226665724,-1233.79,0.00019452,2]
[329302644,1718226665735,-522.57,0.00019452,2]
[329302645,1718226665747,-151.0,0.00019452,2]
[329302646,1718226665775,-921.12,0.00019452,2]
[329302647,1718226665787,-151.0,0.00019452,2]
[329302648,1718226665808,-3936.87,0.00019452,2]
[329302649,1718226665820,-500.0,0.00019452,2]
[329302650,1718226665831,-672.79,0.00019452,2]
[329302651,1718226665842,-203.321606,0.00019452,2]
[329302652,1718226665855,-920.41,0.00019452,2]
[329302653,1718226665870,-151.0,0.00019452,2]
[329302654,1718226665884,-203.321606,0.00019452,2]
[329302655,1718226665995,-500.0,0.00019452,2]
[329302656,1718226666008,-4004.66,0.00019452,2]
[329302657,1718226666033,-9515.81,0.00019452,2]
[329302658,1718226666045,-3739.05,0.00019452,2]
[329302659,1718226666059,-151.0,0.00019452,2]
[329302660,1718226666074,-1800.83,0.00019452,2]
[329302661,1718226666089,-698.14,0.00019452,2]
[329302662,1718226666108,-335.223716,0.00019452,2]
[329302663,1718226666121,-1861.24,0.00019452,2]
[329302664,1718226666162,-335.223716,0.00019452,2]
[329302665,1718226666174,-626.6,0.00019452,2]
[329302666,1718226666187,-5014.22,0.00019452,2]
[329302667,1718226666203,-332.568126,0.00019452,2]
[329302668,1718226666219,-442.99688106,0.00019452,2]
[329302669,1718226666241,-332.568126,0.00019452,2]
[329302670,1718226666255,-500.0,0.00019452,2]
[329302671,1718226666274,-714.84,0.00019452,2]
[329302672,1718226666286,-828.38,0.00019452,2]
[329302673,1718226666296,-545.52,0.00019452,2]
[329302674,1718226666313,-500.0,0.00019452,2]
[329302675,1718226666325,-723.5,0.00019452,2]
[329302676,1718226666341,-1052.01,0.00019452,2]
[329302677,1718226666354,-155.0,0.0001951,2]
[329302678,1718226666367,-292.5693121,0.00019534,2]
[329302679,1718226666394,-410.7646814,0.00019534,2]
[329302680,1718226666409,-292.5693121,0.00019534,2]
[329302681,1718226666421,-292.5693121,0.00019534,2]
[329302682,1718226666434,-292.5693121,0.00019534,2]
[329302683,1718226666445,-292.5693121,0.00019534,2]
[329302684,1718226666459,-151.0,0.00019572,2]
[329302685,1718226666474,-151.0,0.00019572,2]
[329302686,1718226666488,-800.0,0.000196,2]
[329302687,1718226666505,-1000.0,0.000197,2]
[329302688,1718226666519,-977.5414692,0.00019704,2]
[329302689,1718226666536,-151.0,0.00019725,2]
[329302690,1718226666551,-151.0,0.00019726,2]
[329302691,1718226666569,-660.42,0.00019726,2]
[329302692,1718226666586,-664.27,0.00019726,2]
[329302693,1718226666606,-670.33,0.00019726,2]
[329302694,1718226666618,-616.02,0.00019726,2]
[329302695,1718226666647,-513.83,0.00019726,2]
[329302696,1718226666660,-616.19,0.00019726,2]
[329302697,1718226666679,-500.0,0.00019726,2]
[329302698,1718226666701,-608.18,0.00019726,2]
[329302699,1718226666713,-541.13,0.00019726,2]
[329302700,1718226666724,-589.73,0.00019726,2]
[329302701,1718226666736,-500.0,0.00019726,2]
[329302702,1718226666756,-898.75,0.00019726,2]
[329302703,1718226666778,-500.0,0.00019726,2]
[329302704,1718226666812,-1695.74,0.00019726,2]
[329302705,1718226666829,-1385.85,0.00019726,2]
[329302706,1718226666849,-542.96,0.00019726,2]
[329302707,1718226666864,-698.72,0.00019726,2]
[329302708,1718226666881,-1233.79,0.00019726,2]
[329302709,1718226666901,-522.57,0.00019726,2]
[329302710,1718226666912,-921.12,0.00019726,2]
[329302711,1718226666930,-3936.87,0.00019726,2]
[329302712,1718226666942,-500.0,0.00019726,2]
[329302713,1718226666963,-672.79,0.00019726,2]
[329302714,1718226666974,-920.41,0.00019726,2]
[329302715,1718226667020,-500.0,0.00019726,2]
[329302716,1718226667048,-4004.66,0.00019726,2]
[329302717,1718226667061,-9515.81,0.00019726,2]
[329302718,1718226667078,-3739.05,0.00019726,2]
[329302719,1718226667091,-1800.83,0.00019726,2]
[329302720,1718226667102,-698.14,0.00019726,2]
[329302721,1718226667114,-1861.24,0.00019726,2]
[329302722,1718226667125,-626.6,0.00019726,2]
[329302723,1718226667157,-5014.22,0.00019726,2]
[329302724,1718226667178,-500.0,0.00019726,2]
[329302725,1718226667218,-714.84,0.00019726,2]
[329302726,1718226667240,-828.38,0.00019726,2]
[329302727,1718226667254,-545.52,0.00019726,2]
[329302728,1718226667268,-500.0,0.00019726,2]
[329302729,1718226667291,-723.5,0.00019726,2]
[329302730,1718226667310,-1052.01,0.00019726,2]
[329302731,1718226667330,-151.0,0.00019786,2]
[329302732,1718226667347,-151.0,0.00019786,2]
[329302733,1718226667362,-621.33977414,0.00019815,2]
[329302734,1718226667374,-71149.94224446,0.00019888,2]
[329302735,1718226667511,-500.0,0.00019888,2]
[329302739,1718226812957,154.98450155,9.999e-05,2]
[329302740,1718226884371,150.98490151,0.00020776,30]
[329302741,1718226884440,150.98490151,0.0002036,120]
[329302744,1718227282062,150.96980604,0.00020715,30]
[329302745,1718227282120,150.96980604,0.00020301,120]
[329302746,1718227423010,147.14287174,9.999e-05,2]
[329302747,1718227423049,7.84162981,9.999e-05,2]
[329302748,1718227830817,150.96980604,0.00020945,30]
[329302810,1718227833776,-319.2038835,0.00015437,2]
[329302812,1718227833789,-843.59577106,0.00016338,2]
[329302814,1718227833802,-309.90857507,0.00016436,2]
[329302816,1718227833822,-187.38487369,0.00016436,2]
[329302818,1718227833834,-155.03875027,0.00016436,2]
[329302820,1718227833846,-165.27354263,0.00016436,2]
[329302822,1718227833857,-155.01395126,0.00016436,2]
[329302824,1718227833868,-300.0,0.00016437,2]
[329302826,1718227833879,-500.0,0.00016438,2]
[329302828,1718227833892,-500.0,0.00016438,2]
[329302830,1718227833904,-500.0,0.00016438,2]
[329302832,1718227833915,-500.0,0.00016438,2]
[329302834,1718227833926,-500.0,0.00016438,2]
[329302836,1718227833938,-500.0,0.00016438,2]
[329302838,1718227833948,-500.0,0.00016438,2]
[329302840,1718227833959,-500.0,0.00016438,2]
[329302842,1718227833970,-500.0,0.00016438,2]
[329302844,1718227833981,-500.0,0.00016438,2]
[329302846,1718227833993,-500.0,0.00016438,2]
[329302848,1718227834003,-500.0,0.00016438,2]
[329302850,1718227834015,-500.0,0.00016438,2]
[329302852,1718227834025,-500.0,0.00016438,2]
[329302854,1718227834036,-500.0,0.00016438,2]
[329302856,1718227834047,-176.49226442,0.00016438,2]
[329302858,1718227834060,-500.0,0.00016438,2]
[329302860,1718227834071,-500.0,0.00016438,2]
[329302862,1718227834084,-500.0,0.00016438,2]
[329302864,1718227834094,-500.0,0.00016438,2]
[329302866,1718227834105,-500.0,0.00016438,2]
[329302868,1718227834116,-503.51431149,0.00016438,2]
[329302870,1718227834125,-500.0,0.00016438,2]
[329302872,1718227834135,-69.9151138,0.00016438,2]